fUST/lending_fUST_20241112
["ID","MTS","AMOUNT","RATE_DAILY","PERIOD"]
[342054325,1731395473749,-500.0,0.00029315,2]
[342054326,1731395473758,-5338.0,0.00029493,30]
[342054327,1731395473767,-871.276454,0.00029502,2]
[342054328,1731395473777,-1033.538785,0.00029502,2]
[342054329,1731395473786,-937.91249878,0.00029589,2]
[342054330,1731395473796,-1273.84,0.00029589,4]
[342054331,1731395473806,-857.24667617,0.00029619,2]
[342054332,1731395473815,-190.2,0.00029683,7]
[342054333,1731395473825,-1000.0,0.000298,30]
[342054334,1731395473835,-5000.0,0.0002981,30]
[342054335,1731395473844,-871.276454,0.00029866,2]
[342054336,1731395473855,-1033.538785,0.00029866,2]
[342054337,1731395473865,-5000.0,0.00029871,30]
[342054338,1731395473875,-732.42,0.000299,31]
[342054339,1731395473884,-732.42,0.000299,31]
[342054340,1731395473894,-732.42,0.000299,31]
[342054341,1731395473903,-732.42,0.000299,31]
[342054342,1731395473912,-732.42,0.000299,31]
[342054343,1731395473922,-732.42,0.000299,31]
[342054344,1731395473931,-732.42,0.000299,31]
[342054345,1731395473940,-732.42,0.000299,31]
[342054346,1731395473953,-732.42,0.000299,31]
[342054347,1731395473962,-732.42,0.000299,31]
[342054348,1731395473970,-732.42,0.000299,31]
[342054349,1731395473979,-732.42,0.000299,31]
[342054350,1731395473989,-732.42,0.000299,31]
[342054351,1731395473999,-732.42,0.000299,31]
[342054352,1731395474008,-732.42,0.000299,31]
[342054353,1731395474018,-732.42,0.000299,31]
[342054354,1731395474027,-732.42,0.000299,31]
[342054355,1731395474037,-732.42,0.000299,31]
[342054356,1731395474047,-732.42,0.000299,31]
[342054357,1731395474056,-732.42,0.000299,31]
[342054358,1731395474066,-732.42,0.000299,31]
[342054359,1731395474075,-732.42,0.000299,31]
[342054360,1731395474085,-732.42,0.000299,31]
[342054361,1731395474095,-732.42,0.000299,31]
[342054362,1731395474104,-1200.0,0.00029998,7]
[342054363,1731395474114,-160.0,0.00029999,10]
[342054364,1731395474123,-160.0,0.00029999,10]
[342054365,1731395474132,-160.0,0.00029999,10]
[342054366,1731395474142,-992.78582971,0.0003,10]
[342054367,1731395474151,-159.0,0.0003,2]
[342054368,1731395474161,-1583.0,0.0003,30]
[342054369,1731395474169,-151.0,0.0003,120]
[342054370,1731395474179,-5615.0,0.0003,30]
[342054371,1731395474188,-151.0,0.0003,120]
[342054372,1731395474197,-1978.88,0.0003,14]
[342054373,1731395474207,-300.18,0.0003,2]
[342054374,1731395474216,-391.83512564,0.0003,10]
[342054375,1731395474226,-900227.55552909,0.0003,2]
[342054376,1731395474235,-7949.35795764,0.0003,10]
[342054377,1731395474245,-1500.0,0.0003,2]
[342054378,1731395474254,-339246.61630465,0.0003,2]
[342054379,1731395474265,-48349.26103891,0.0003,60]
[342054380,1731395474274,-1021.84028985,0.0003,7]
[342054381,1731395474283,-11736.68987012,0.0003,15]
[342054382,1731395474293,-690.60995362,0.0003,30]
[342054383,1731395474302,-6254.55013208,0.0003,2]
[342054384,1731395474311,-13459.44452333,0.0003,3]
[342054385,1731395474320,-2047.67953548,0.0003,30]
[342054386,1731395474330,-102634.66689616,0.0003,2]
[342054387,1731395474339,-1173.80996566,0.0003,30]
[342054388,1731395474348,-26395.0,0.0003,120]
[342054389,1731395474358,-219.09,0.0003,30]
[342054390,1731395474367,-400.1046496,0.0003,3]
[342054391,1731395474376,-571.22233514,0.0003,30]
[342054392,1731395474386,-35025.31835828,0.0003,2]
[342054393,1731395474395,-4355.4657477,0.0003,5]
[342054394,1731395474404,-400.0,0.0003,120]
[342054395,1731395474413,-2511.0,0.0003,2]
[342054396,1731395474422,-17371.20002461,0.0003,15]
[342054397,1731395474431,-182.9185,0.0003,2]
[342054398,1731395474440,-11043.945,0.0003,2]
[342054399,1731395474453,-300.0,0.0003,38]
[342054400,1731395474463,-159.7185,0.0003,2]
[342054401,1731395474474,-303.00000303,0.0003,2]
[342054402,1731395474484,-500.0,0.0003,32]
[342054403,1731395474493,-264.0,0.0003,2]
[342054404,1731395474504,-302.96970909,0.0003,2]
[342054405,1731395474514,-274.13641599,0.0003,2]
[342054406,1731395474524,-3500.0,0.00030026,5]
[342054407,1731395474534,-1000.0,0.00030136,30]
[342054408,1731395474545,-1000.0,0.00030136,30]
[342054409,1731395474554,-1000.0,0.00030136,30]
[342054410,1731395474563,-1000.0,0.00030136,30]
[342054411,1731395474572,-343.35631535,0.00030136,30]
[342054412,1731395474582,-518.93,0.00030136,7]
[342054413,1731395474591,-903.56,0.00030136,120]
[342054414,1731395474601,-903.56,0.00030136,120]
[342054415,1731395474610,-903.56,0.00030136,120]
[342054416,1731395474620,-903.56,0.00030136,120]
[342054417,1731395474629,-903.56,0.00030136,120]
[342054418,1731395474639,-903.56,0.00030136,120]
[342054419,1731395474648,-903.56,0.00030136,120]
[342054420,1731395474658,-903.56,0.00030136,120]
[342054421,1731395474667,-903.56,0.00030136,120]
[342054422,1731395474676,-903.56,0.00030136,120]
[342054423,1731395474686,-903.56,0.00030136,120]
[342054424,1731395474697,-903.56,0.00030136,120]
[342054425,1731395474709,-903.56,0.00030136,120]
[342054426,1731395474719,-903.56,0.00030136,120]
[342054427,1731395474728,-903.56,0.00030136,120]
[342054428,1731395474737,-903.56,0.00030136,120]
[342054429,1731395474746,-903.56,0.00030136,120]
[342054430,1731395474756,-903.56,0.00030136,120]
[342054431,1731395474765,-903.56,0.00030136,120]
[342054432,1731395474775,-903.56,0.00030136,120]
[342054433,1731395474785,-903.56,0.00030136,120]
[342054434,1731395474795,-903.56,0.00030136,120]
[342054435,1731395474805,-903.56,0.00030136,120]
[342054436,1731395474814,-903.56,0.00030136,120]
[342054437,1731395474824,-500.0,0.00030136,2]
[342054438,1731395474835,-500.0,0.00030136,2]
[342054439,1731395474845,-500.0,0.00030136,2]
[342054440,1731395474855,-230.05563753,0.00030136,2]
[342054441,1731395474865,-999.0,0.00030136,120]
[342054442,1731395474875,-56116.8940704,0.00030137,10]
[342054443,1731395474972,-500.0,0.00030137,2]
[342054444,1731395474993,-150.03,0.00030137,2]
[342054445,1731395475003,-300.0,0.000302,2]
[342054446,1731395475012,-871.276454,0.0003023,2]
[342054447,1731395475022,-1033.538785,0.0003023,2]
[342054448,1731395475032,-303.00000303,0.000303,2]
[342054449,1731395475042,-302.96970909,0.000303,2]
[342054450,1731395475052,-190.2,0.00030341,7]
[342054451,1731395475062,-500.0,0.00030411,2]
[342054452,1731395475072,-1999.0,0.00030438,2]
[342054453,1731395475082,-1999.0,0.00030438,2]
[342054454,1731395475093,-1999.0,0.00030438,2]
[342054455,1731395475102,-1999.0,0.00030438,2]
[342054456,1731395475112,-1999.0,0.00030438,2]
[342054457,1731395475121,-1999.0,0.00030438,2]
[342054458,1731395475130,-1999.0,0.00030438,2]
[342054459,1731395475139,-1999.0,0.00030438,2]
[342054460,1731395475149,-441.01313084,0.00030438,2]
[342054461,1731395475159,-26394.83,0.000305,14]
[342054462,1731395475169,-500.0,0.00030552,3]
[342054463,1731395475179,-871.276454,0.00030595,2]
[342054464,1731395475188,-1033.538785,0.00030595,2]
[342054465,1731395475200,-172.390104,0.00030595,2]
[342054466,1731395475209,-9161.96,0.000306,30]
[342054467,1731395475218,-3767.3,0.000306,30]
[342054468,1731395475227,-303.00000303,0.000306,2]
[342054469,1731395475238,-302.96970909,0.000306,2]
[342054470,1731395475248,-150.0,0.00030617,120]
[342054471,1731395475257,-187.83974584,0.0003065,2]
[342054472,1731395475267,-150.0,0.00030661,2]
[342054473,1731395475277,-530.0,0.00030661,2]
[342054474,1731395475287,-2390.0,0.00030661,2]
[342054475,1731395475297,-1123.0,0.00030661,2]
[342054476,1731395475306,-500.0,0.00030685,2]
[342054477,1731395475316,-732.42,0.000307,31]
[342054478,1731395475325,-732.42,0.000307,31]
[342054479,1731395475334,-732.42,0.000307,31]
[342054480,1731395475344,-732.42,0.000307,31]
[342054481,1731395475353,-732.42,0.000307,31]
[342054482,1731395475363,-732.42,0.000307,31]
[342054483,1731395475372,-732.42,0.000307,31]
[342054484,1731395475381,-732.42,0.000307,31]
[342054485,1731395475390,-732.42,0.000307,31]
[342054486,1731395475399,-732.42,0.000307,31]
[342054487,1731395475408,-732.42,0.000307,31]
[342054488,1731395475417,-732.42,0.000307,31]
[342054489,1731395475427,-732.42,0.000307,31]
[342054490,1731395475436,-732.42,0.000307,31]
[342054491,1731395475449,-732.42,0.000307,31]
[342054492,1731395475458,-732.42,0.000307,31]
[342054493,1731395475473,-732.42,0.000307,31]
[342054494,1731395475483,-732.42,0.000307,31]
[342054495,1731395475492,-732.42,0.000307,31]
[342054496,1731395475502,-732.42,0.000307,31]
[342054497,1731395475513,-732.42,0.000307,31]
[342054498,1731395475523,-732.42,0.000307,31]
[342054499,1731395475533,-732.42,0.000307,31]
[342054500,1731395475543,-732.42,0.000307,31]
[342054501,1731395475554,-857.24667617,0.00030728,2]
[342054502,1731395475564,-3577.66360989,0.000308,30]
[342054503,1731395475573,-2545.46990879,0.00030801,4]
[342054504,1731395475582,-3500.0,0.00030826,5]
[342054505,1731395475592,-3500.0,0.00030826,5]
[342054506,1731395475602,-879.63020235,0.00030828,7]
[342054507,1731395475611,-472528.78882915,0.00030828,10]
[342054508,1731395475773,-337.83201333,0.00030828,10]
[342054509,1731395475884,5284.81670441,0.0002052,2]
[342054510,1731395475930,5284.81670442,0.0002056,2]
[342054511,1731395475987,-500.0,0.00021917,2]
[342054512,1731395475998,-211.82377609,0.00021917,2]
[342054513,1731395476009,-500.0,0.00022191,2]
[342054514,1731395476018,-575.64,0.00022465,2]
[342054515,1731395476029,-407.07559486,0.00022465,2]
[342054516,1731395476039,-500.0,0.00022465,2]
[342054517,1731395476049,-575.64,0.00022739,2]
[342054518,1731395476059,-555.55316804,0.00022739,2]
[342054519,1731395476068,-261.47742531,0.00023013,2]
[342054520,1731395476081,-314.16257469,0.00023013,2]
[342054521,1731395476091,-575.64,0.00023287,2]
[342054522,1731395476101,-65.03194131,0.00023561,2]
[342054523,1731395476113,-226.93607477,0.00023561,2]
[342054524,1731395476122,-575.64,0.00023561,2]
[342054525,1731395476132,-575.64,0.00023835,2]
[342054526,1731395476141,-575.64,0.00024109,2]
[342054527,1731395476152,-1217.45,0.00026849,2]
[342054528,1731395476162,-1217.45,0.00027123,2]
[342054529,1731395476172,-1217.45,0.00027397,2]
[342054530,1731395476181,-1217.45,0.00027671,2]
[342054531,1731395476191,-1217.45,0.00027945,2]
[342054532,1731395476202,-1217.68751382,0.00028219,2]
[342054533,1731395476212,-293206.06030482,0.00030828,10]
[342054534,1731395476330,7052.70770288,0.00020841,2]
[342054535,1731395476359,-1169.27083333,0.00020845,2]
[342054536,1731395476371,-505.70828917,0.00021917,2]
[342054537,1731395476381,-409.14003386,0.00021917,2]
[342054538,1731395476391,-575.64,0.00024383,2]
[342054539,1731395476402,-575.64,0.00024657,2]
[342054540,1731395476412,-575.64,0.00024931,2]
[342054541,1731395476422,-575.64,0.00025205,2]
[342054542,1731395476432,-575.64,0.00025479,2]
[342054543,1731395476441,-575.64,0.00025753,2]
[342054544,1731395476452,-575.64,0.00026027,2]
[342054545,1731395476463,-575.64,0.00026301,2]
[342054546,1731395476476,-575.64,0.00026575,2]
[342054547,1731395476485,-575.64,0.00026849,2]
[342054548,1731395476495,-575.64,0.00027123,2]
[342054549,1731395476504,-575.64,0.00027397,2]
[342054550,1731395476514,-575.64,0.00027671,2]
[342054551,1731395476524,-5317.74944364,0.00030828,10]
[342054552,1731395476536,-51253.43761502,0.00030828,10]
[342054553,1731395476554,-497.69076039,0.00021917,2]
[342054554,1731395476564,-1745.04551127,0.00030828,10]
[342054555,1731395477013,1061.82675445,0.00020745,2]
[342054556,1731395477091,571.58391307,0.00020744,2]
[342054557,1731395477209,3724.5637113,0.00020745,2]
[342054558,1731395477271,300.0,0.00020559,2]
[342054559,1731395477350,300.0,0.00020559,2]
[342054560,1731395503428,999.2,0.00027,60]
[342054565,1731395553989,24900.0,0.00020722,2]
[342054569,1731395660319,1925.351046,0.00020619,2]
[342054573,1731395754608,160.0,0.00020844,2]
[342054576,1731395811735,400.0,0.00013973,2]
[342054577,1731395811951,400.0,0.00020447,2]
[342054578,1731395812675,280.0035,0.0002,2]
[342054579,1731395815025,168.617,0.00019367,2]
[342054580,1731395816951,1169.27083333,0.00020844,2]
[342054587,1731395980563,2992.1959557,0.00020624,2]
[342054589,1731396034826,225.24825,0.00027,120]
[342054590,1731396066439,160.0,0.00020844,2]
[342054591,1731396097655,188.48503151,0.00020744,2]
[342054594,1731396129620,1169.27083333,0.00020844,2]
[342054596,1731396243250,24900.0,0.00020624,2]
[342054598,1731396254953,-1000.0,0.00030636,120]
[342054607,1731396378085,160.0,0.00020844,2]
[342054608,1731396398704,301.32,0.00020844,2]
[342054609,1731396401414,1517.840305,0.00020635,2]
[342054614,1731396442438,1169.27083333,0.00020844,2]
[342054631,1731396512282,310.01641204,0.000176,2]
[342054632,1731396517767,676.60622873,0.0002,2]
[342054638,1731396524218,678.4047442,0.0002,2]
[342054640,1731396524461,214.0,0.000195,10]
[342054641,1731396524908,19931.19899539,0.0001,2]
[342054642,1731396525215,150.44253866,0.0002,7]
[342054649,1731396572292,400.0,0.00013973,2]
[342054650,1731396572496,400.0,0.00020447,2]
[342055004,1731396635663,-178.52,0.00020844,2]
[342055006,1731396635674,-160.0,0.00020844,2]
[342055008,1731396635683,-10.45319425,0.00020844,2]
[342055010,1731396635694,-1108.03170345,0.00020844,2]
[342055015,1731396635729,-50.78593563,0.00020844,2]
[342055017,1731396635738,-998.58,0.000209,2]
[342055020,1731396635747,-162.213847,0.00020903,2]
[342055023,1731396635756,-233.33,0.00021,2]
[342055026,1731396635765,-1087.83087655,0.00021,2]
[342055029,1731396635774,-509.72916837,0.000212,2]
[342055031,1731396635783,-1430.56757245,0.0002132,2]
[342055301,1731396638444,-87.27273255,0.0002132,2]
[342055303,1731396638452,-311.62339263,0.00021358,2]
[342055305,1731396638462,-661.42396003,0.00021458,2]
[342055307,1731396638471,-311.62339262,0.00021574,2]
[342055310,1731396638481,-300.0,0.00021697,2]
[342055312,1731396638491,-300.0,0.00021697,2]
[342055313,1731396638500,-3966.42260517,0.00021698,2]
[342055316,1731396638511,-1451.23920003,0.00021698,2]
[342055318,1731396638523,-257.09,0.00021698,2]
[342055320,1731396638534,-319.2398709,0.00021698,2]
[342056241,1731396648606,-1767.82730619,0.00021698,2]
[342056243,1731396648615,-311.62339262,0.00021789,2]
[342056245,1731396648627,-1439.38665353,0.00021817,2]
[342056247,1731396648637,-989.01250015,0.00021889,2]
[342056249,1731396648646,-152.0,0.00021893,2]
[342056251,1731396648655,-150.0,0.000219,2]
[342056253,1731396648663,-157.25,0.00021906,2]
[342056255,1731396648672,-719.93,0.00021907,3]
[342056257,1731396648682,-500.0,0.00021916,2]
[342056259,1731396648691,-500.0,0.00021916,2]
[342056261,1731396648701,-500.0,0.00021916,2]
[342056263,1731396648710,-500.0,0.00021916,2]
[342056265,1731396648720,-500.0,0.00021916,2]
[342056267,1731396648729,-439.9831583,0.00021916,2]
[342056269,1731396648739,-500.0,0.00021916,2]
[342056271,1731396648748,-500.0,0.00021916,2]
[342056273,1731396648761,-500.0,0.00021916,2]
[342056275,1731396648770,-500.0,0.00021916,2]
[342056277,1731396648780,-207.15995836,0.00021916,2]
[342056279,1731396648790,-500.0,0.00021916,2]
[342056281,1731396648799,-439.21861302,0.00021916,2]
[342056283,1731396648809,-361.92960929,0.00021916,2]
[342056285,1731396648820,-500.0,0.00021916,2]
[342056287,1731396648830,-180.25957069,0.00021916,2]
[342056289,1731396648841,-500.0,0.00021916,2]
[342056291,1731396648851,-500.0,0.00021916,2]
[342056293,1731396648863,-488.39646486,0.00021916,2]
[342056295,1731396648872,-500.0,0.00021916,2]
[342056297,1731396648884,-500.0,0.00021916,2]
[342056299,1731396648894,-500.0,0.00021916,2]
[342056301,1731396648905,-362.52076838,0.00021916,2]
[342056303,1731396648917,-137.47923162,0.00021916,2]
[342056305,1731396648927,-500.0,0.00021916,2]
[342056307,1731396648937,-500.0,0.00021916,2]
[342056309,1731396648947,-636.83847442,0.00021916,2]
[342056311,1731396648956,-208.65594832,0.00021917,2]
[342056313,1731396648965,-500.0,0.00021917,2]
[342056315,1731396648974,-301.59431134,0.00021917,2]
[342062243,1731396898929,175.227578,0.00020323,2]
[342062768,1731396961070,256.95641586,0.00020744,2]
[342064089,1731397002347,160.0,0.00020844,2]
[342064090,1731397048743,24900.0,0.00020631,2]
[342064091,1731397067124,1169.27083333,0.00020844,2]
[342064092,1731397077796,214.66795243,0.00020744,2]
[342064093,1731397082895,505.946768,0.00020665,2]
[342064095,1731397233231,186.5332578,0.00019576,2]
[342064096,1731397314025,400.0,0.00013973,2]
[342064097,1731397314429,400.0,0.00020447,2]
[342064098,1731397314574,160.0,0.00020844,2]
[342064103,1731397380632,24357.11407138,0.00020744,2]
[342064104,1731397380782,1169.27083333,0.00020844,2]
[342064105,1731397416129,159.681128,0.00020655,2]
[342064109,1731397626726,160.0,0.00020844,2]
[342064110,1731397693732,1169.27083333,0.00020844,2]
[342064111,1731397709846,3000.0,0.00020606,2]
[342064114,1731397770445,337.297845,0.00020723,2]
[342064126,1731397832801,-160.0,0.00020844,2]
[342064127,1731397832810,-599.32909729,0.00020844,2]
[342064133,1731397840696,-569.94173604,0.00020844,2]
[342064134,1731397840705,-898.72,0.000209,2]
[342064135,1731397840715,-337.297845,0.00021408,2]
[342064136,1731397840724,-4074.79192929,0.00021781,2]
[342064137,1731397840733,-792.22283314,0.00021793,2]
[342064138,1731397840743,-1286.63035579,0.00021793,2]
[342064139,1731397840752,-300.0,0.00021815,2]
[342064140,1731397840762,-300.0,0.00021815,2]
[342064141,1731397840771,-404.09316383,0.00021816,2]
[342064142,1731397840781,-326.57984589,0.00021816,2]
[342064143,1731397840791,-410.61738035,0.00021816,2]
[342064144,1731397840799,-500.0,0.00021816,2]
[342064145,1731397840809,-289.8,0.00021816,2]
[342064146,1731397840819,-500.0,0.00021816,2]
[342064147,1731397840828,-500.0,0.00021816,2]
[342064148,1731397840842,-355.37777599,0.00021817,2]
[342064149,1731397840851,-10485.7747228,0.00021817,2]
[342064150,1731397840864,-3216.03604392,0.00021817,2]
[342064165,1731397843703,-37901.90409254,0.00021817,2]
[342064166,1731397843802,-1969.83050311,0.00021817,2]
[342064181,1731397846611,-47402.03962454,0.00021817,2]
[342064182,1731397846625,-1330.18100869,0.00021817,2]
[342064183,1731397846638,-17074.27953053,0.00021817,2]
[342067162,1731398015275,-27182.43587166,0.00022,30]
[342067164,1731398251915,160.0,0.00020844,2]
[342067165,1731398318273,1169.27083333,0.00020844,2]
[342067231,1731398563505,160.0,0.00020844,2]
[342067232,1731398630487,1169.27083333,0.00020844,2]
[342067233,1731398646508,168.648922,0.00020791,2]
[342067236,1731398688361,21765.3715966,0.00020791,2]
[342067251,1731398801805,-808.85,0.000209,2]
[342067252,1731398801827,-2301.7770452,0.00020922,2]
[342067253,1731398801848,-160.0,0.00021193,2]
[342067254,1731398801872,-1169.27083333,0.00021367,2]
[342067255,1731398801897,-2219.0,0.00021678,2]
[342067256,1731398801919,-252.18287758,0.00021716,2]
[342067257,1731398801942,-300.0,0.00021815,2]
[342067258,1731398801963,-300.0,0.00021815,2]
[342067259,1731398801984,-236.91851733,0.00021817,2]
[342067260,1731398802004,-527.93472068,0.00021817,2]
[342067261,1731398802024,-858.04875454,0.00021817,2]
[342067262,1731398802044,-500.0,0.00021893,2]
[342067263,1731398802064,-154.51656116,0.00021916,2]
[342067264,1731398802085,-176.28691889,0.00021916,2]
[342067265,1731398802105,-240.39788549,0.00021916,2]
[342067266,1731398802126,-416.00338607,0.00021916,2]
[342067267,1731398802150,-428.82078539,0.00021916,2]
[342067268,1731398802172,-533.44461313,0.00021916,2]
[342067269,1731398802194,-500.0,0.00021916,2]
[342067270,1731398802215,-157.91152016,0.00021916,2]
[342067271,1731398802236,-500.0,0.00021916,2]
[342067272,1731398802257,-500.0,0.00021916,2]
[342067273,1731398802279,-500.0,0.00021916,2]
[342067274,1731398802301,-500.0,0.00021916,2]
[342067275,1731398802322,-500.0,0.00021916,2]
[342067276,1731398802345,-500.0,0.00021916,2]
[342067277,1731398802367,-337.68299112,0.00021916,2]
[342067278,1731398802388,-500.0,0.00021916,2]
[342067279,1731398802412,-500.0,0.00021916,2]
[342067280,1731398802433,-500.0,0.00021916,2]
[342067281,1731398802454,-500.0,0.00021916,2]
[342067282,1731398802475,-500.0,0.00021916,2]
[342067283,1731398802495,-500.0,0.00021916,2]
[342067284,1731398802514,-500.0,0.00021916,2]
[342067285,1731398802535,-500.0,0.00021916,2]
[342067286,1731398802556,-500.0,0.00021916,2]
[342067287,1731398802580,-500.0,0.00021916,2]
[342067288,1731398802601,-500.0,0.00021916,2]
[342067289,1731398802624,-500.0,0.00021916,2]
[342067290,1731398802647,-500.0,0.00021916,2]
[342067291,1731398802669,-500.0,0.00021916,2]
[342067292,1731398802690,-500.0,0.00021916,2]
[342067293,1731398802710,-500.0,0.00021916,2]
[342067294,1731398802730,-500.0,0.00021916,2]
[342067295,1731398802751,-500.0,0.00021916,2]
[342067296,1731398802772,-500.0,0.00021916,2]
[342067297,1731398802792,-209.16869715,0.00021916,2]
[342067298,1731398802815,-500.0,0.00021916,2]
[342067299,1731398802835,-500.0,0.00021916,2]
[342067300,1731398802856,-500.0,0.00021916,2]
[342067301,1731398802876,-500.0,0.00021916,2]
[342067302,1731398802898,-500.0,0.00021916,2]
[342067303,1731398802918,-324.52863398,0.00021916,2]
[342067304,1731398802938,-500.0,0.00021916,2]
[342067305,1731398803084,-500.0,0.00021916,2]
[342067306,1731398803107,-500.0,0.00021916,2]
[342067307,1731398803127,-500.0,0.00021916,2]
[342067308,1731398803150,-500.0,0.00021916,2]
[342067309,1731398803172,-500.0,0.00021916,2]
[342067310,1731398803193,-500.0,0.00021916,2]
[342067311,1731398803213,-500.0,0.00021916,2]
[342067312,1731398803236,-500.0,0.00021916,2]
[342067313,1731398803257,-500.0,0.00021916,2]
[342067314,1731398803278,-500.0,0.00021916,2]
[342067315,1731398803298,-500.0,0.00021916,2]
[342067316,1731398803319,-500.0,0.00021916,2]
[342067317,1731398803340,-500.0,0.00021916,2]
[342067318,1731398803361,-500.0,0.00021916,2]
[342067319,1731398803381,-500.0,0.00021916,2]
[342067320,1731398803404,-214.50227676,0.00021916,2]
[342067321,1731398803426,-500.0,0.00021916,2]
[342067322,1731398803445,-500.0,0.00021917,2]
[342067323,1731398803466,-500.0,0.00021917,2]
[342067324,1731398803486,-503.3902614,0.00021917,2]
[342067325,1731398803509,-507.86080668,0.00021917,2]
[342067326,1731398803531,-503.25029145,0.00021917,2]
[342067327,1731398803551,-366.69527761,0.00021917,2]
[342067328,1731398803571,-556.67508852,0.00021917,2]
[342067329,1731398803594,-500.0,0.00021917,2]
[342067330,1731398803615,-500.0,0.00021917,2]
[342067331,1731398803635,-500.0,0.00021917,2]
[342067332,1731398803662,-305.49205736,0.00021917,2]
[342067333,1731398803683,-497.69076039,0.00021917,2]
[342067334,1731398803703,-514.34053155,0.00021917,2]
[342067335,1731398803724,-500.0,0.00021917,2]
[342067336,1731398803743,-500.0,0.00021917,2]
[342067337,1731398803764,-500.0,0.00021917,2]
[342067338,1731398803785,-598.27692769,0.00021917,2]
[342067339,1731398803805,-500.0,0.00021917,2]
[342067340,1731398803825,-500.0,0.00021917,2]
[342067341,1731398803846,-500.0,0.00021917,2]
[342067342,1731398803865,-500.0,0.00021917,2]
[342067343,1731398803885,-500.0,0.00021917,2]
[342067344,1731398803907,-500.0,0.00021917,2]
[342067345,1731398803927,-500.0,0.00021917,2]
[342067346,1731398803947,-500.0,0.00021917,2]
[342067347,1731398803966,-500.0,0.00021917,2]
[342067348,1731398803987,-500.0,0.00021917,2]
[342067349,1731398804008,-500.0,0.00021917,2]
[342067350,1731398804029,-500.0,0.00021917,2]
[342067351,1731398804049,-500.0,0.00021917,2]
[342067352,1731398804069,-500.0,0.00021917,2]
[342067353,1731398804089,-500.0,0.00021917,2]
[342067354,1731398804109,-500.0,0.00021917,2]
[342067355,1731398804130,-500.0,0.00021917,2]
[342067356,1731398804158,-500.0,0.00021917,2]
[342067357,1731398804179,-500.0,0.00021917,2]
[342067358,1731398804198,-1000.0,0.00021917,2]
[342067359,1731398804218,-500.0,0.00021917,2]
[342067360,1731398804237,-500.0,0.00021917,2]
[342067361,1731398804256,-500.0,0.00021917,2]
[342067362,1731398804275,-158.65479171,0.00021917,2]
[342067363,1731398804295,-500.0,0.00021917,2]
[342067364,1731398804315,-500.0,0.00021917,2]
[342067365,1731398804335,-524.92777058,0.00021917,2]
[342067366,1731398804354,-424.33600619,0.00021917,2]
[342067367,1731398804374,-500.0,0.00021917,2]
[342067368,1731398804397,-500.0,0.00021917,2]
[342067369,1731398804417,-500.0,0.00021917,2]
[342067370,1731398804436,-500.0,0.00021917,2]
[342067371,1731398804465,-500.0,0.00021917,2]
[342067372,1731398804490,-500.0,0.00021917,2]
[342067373,1731398804511,-500.0,0.00021917,2]
[342067374,1731398804532,-500.0,0.00021917,2]
[342067375,1731398804554,-500.0,0.00021917,2]
[342067376,1731398804575,-500.0,0.00021917,2]
[342067377,1731398804600,-500.0,0.00021917,2]
[342067378,1731398804622,-500.0,0.00021917,2]